Cogmind - Beta 14 @@@ ROGUE MODE // 2024.09.06 @ 18:28:05 Player: Buttons Result: Destroyed by AC-5HE(R) with Subdweller Laser Performance ------------- Evolutions (0) 0 Regions Visited (2) 400 Robots Destroyed (23) 115 Value Destroyed (498) 498 Prototype IDs (11) 220 Alien Tech Used (0) 0 Bonus (0) 0 TOTAL SCORE: 1233 Bonus ------- None Cogmind --------- Core Integrity 0/250 Matter 248/300 Energy 425/465 System Corruption 0% Temperature Hot (222) Movement Rolling (120) Ox1 Location -10/Subcaves Parts ------- > --- POWER (1+1) ------ Ion Engine Neutrino Core (+) > --- PROPULSION (2+1) - Subdweller Monowheel Subdweller Monowheel > --- UTILITY (2+1) ---- Makeshift Light Armor Plating (+) Makeshift Light Armor Plating Rainbow Chip > --- WEAPON (2+1) ----- Subdweller Beam Cannon Subdweller Beam Cannon > --- INVENTORY (5) ---- Subdweller Power Source Subdweller Monowheel Subdweller Shrapnel Launcher Subdweller Shrapnel Launcher Makeshift Sword Peak State ------------ > --- POWER ------------ Ion Engine Neutrino Core > --- PROPULSION ------- Subdweller Monowheel Subdweller Monowheel > --- UTILITY ---------- Makeshift Light Armor Plating Makeshift Light Armor Plating Rainbow Chip > --- WEAPON ----------- Subdweller Beam Cannon Makeshift Sword > --- INVENTORY -------- Subdweller Power Source Subdweller Monowheel Subdweller Beam Cannon Subdweller Shrapnel Launcher Subdweller Shrapnel Launcher [Rating: 39] Favorites ----------- Power Ion Engine Engine Ion Engine Power Core Neutrino Core Propulsion Wheel Wheel Wheel Utility Makeshift Light Armor Plating Device Improved Terrain Scanner Storage Large Storage Unit Processor Rainbow Chip Protection Makeshift Light Armor Plating Weapon Autogun Energy Gun Small Laser Energy Cannon Subdweller Beam Cannon Ballistic Gun Autogun Launcher Rocket Launcher Slashing Weapon Makeshift Sword Build | -11 -10 -10 ------- Run | Yrd Mat Sub Slots Evolved . | . . . Power . | . . . Propulsion . | . . . Utility . | . . . Weapon . | . . . Parts Attached 43 | 7 12 24 Power 6 | 1 3 2 Engine 5 | 1 3 1 Core 1 | . . 1 Reactor . | . . . Propulsion 9 | 2 1 6 Treads . | . . . Leg . | . . . Wheel 9 | 2 1 6 Hover . | . . . Flight . | . . . Utility 12 | 2 2 8 Device 3 | 2 1 . Storage 1 | . 1 . Processor 1 | . . 1 Hackware . | . . . Protection 7 | . . 7 Artifact . | . . . Weapon 16 | 2 6 8 Energy Gun 2 | 2 . . Energy Cannon 3 | . . 3 Ballistic Gun 9 | . 6 3 Ballistic Cannon . | . . . Launcher 1 | . . 1 Special Weapon . | . . . Impact Weapon . | . . . Slashing Weapon 1 | . . 1 Piercing Weapon . | . . . Special Melee Weapon . | . . . Unidentified Prototypes . | . . . Parts Lost 7 | . 1 6 Power 2 | . 1 1 Propulsion 2 | . . 2 Utility 1 | . . 1 Weapon 2 | . . 2 Highest Loss Streak 6 | . 1 6 To Critical Strikes 1 | . . 1 Average Slot Usage (%) 93 | . 98 86 Engine 13 | . 14 12 Wheel 26 | . 28 25 Device 9 | . 17 . Storage 5 | . 10 . Protection 8 | . . 17 Energy Cannon 6 | . . 13 Ballistic Gun 16 | . 26 5 Slashing Weapon 2 | . . 6 Peak Build Rating 39 | 9 13 39 Average Rating 14 | 5 11 19 On Entrance 7 | . 9 13 Naked Turns . | . . . Heaviest Build 37 | 7 32 37 Greatest Support 40 | 20 20 40 Greatest Overweight (x) 2 | . 2 2 Average Overweight (x) . | . . . Largest Inventory Capacity 15 | 5 15 15 Average Capacity 8 | 5 12 5 Most Carried 15 | 5 15 15 Average Carried 6 | 2 9 5 Final Capacity 15 | 5 15 5 Final Carried 15 | 5 15 5 Class Distribution -------------------- 63% | Mutant 36% | Scavenger-Mutant Dominant Class ---------------- Mutant | -10/Materials Scavenger-Mutant | -10/Subcaves Resources | -11 -10 -10 ----------- Run | Yrd Mat Sub Matter Collected 846 | 270 339 237 Remotely . | . . . Salvage Created 669 | 150 296 223 Parts 53 | 11 27 15 Haulers Intercepted 1 | . 1 . Recyclers Shooed 1 | . 1 . Parts Field Recycled . | . . . Retrieved Matter . | . . . Parts Self-Destructed . | . . . Prevented . | . . . Kills | -11 -10 -10 ------- Run | Yrd Mat Sub Combat Hostiles Destroyed 11 | 1 4 6 Melee 1 | . . 1 Guns 8 | 1 4 3 AOE 2 | . . 2 Classes Destroyed 7 | 3 3 1 Worker 3 | 1 2 . Tunneler 5 | 4 1 . Hauler 1 | . 1 . Operator 2 | . 2 . Watcher 1 | . 1 . Grunt 5 | 1 4 . Subdweller 6 | . . 6 Best Kill Streak 5 | 5 4 5 Combat Bots Only 5 | 1 2 5 Max Kills in Single Turn 2 | 1 1 2 Gunslinging . | . . . Exploded 2 | . . 2 Melee 1 | . . 1 Uniques/NPCs Destroyed . | . . . Combat | -11 -10 -10 -------- Run | Yrd Mat Sub Hostile Shots Fired 75 | 1 19 55 Missed 15 | . 4 11 Damage Taken 1277 | 12 166 1099 Core 252 | . 22 230 Absorbed by Shields . | . . . Regen/Repaired (Parts) 74 | . 74 . Core Remaining (%) 100 | 100 . . Volleys Fired 58 | 11 31 16 Largest 2 | 2 2 2 Hottest 160 | 80 80 160 Shots Fired 110 | 22 62 26 Gun 101 | 22 62 17 Cannon 8 | . . 8 Launcher 1 | . . 1 Special . | . . . Kinetic 73 | . 56 17 Thermal 36 | 22 6 8 Explosive 1 | . . 1 Electromagnetic . | . . . Robot Hit Streak 17 | 4 5 17 Robot Miss Streak 5 | 2 5 2 Penetration Max . | . . . Secondary Targets 1 | . . 1 Max Gunslinging Chain 1 | . . 1 Shots Hit Robots 71 | 13 35 23 Core Hits 34 | 7 16 11 Critical Kills . | . . . Critical Parts Destroyed . | . . . Critical Strikes . | . . . Melee Attacks 5 | . . 5 Impact . | . . . Slashing 5 | . . 5 Piercing . | . . . Sneak Attacks . | . . . Combat Hostiles . | . . . Follow-up Attacks . | . . . Damage Inflicted 1431 | 139 460 832 Guns 813 | 139 460 214 Cannons 140 | . . 140 Explosions 409 | . . 409 Melee 69 | . . 69 Ramming . | . . . Kinetic 663 | . 449 214 Thermal 290 | 139 11 140 Explosive 409 | . . 409 Electromagnetic . | . . . Impact . | . . . Slashing 69 | . . 69 Piercing . | . . . Highest Corruption . | . . . Average Corruption . | . . . Corruption Purged . | . . . Corruption Blocked . | . . . Overload Shots . | . . . Overflow Damage . | . . . Projectiles . | . . . Explosions . | . . . Melee . | . . . Knockbacks . | . . . Impact . | . . . Kinetic . | . . . Secondary . | . . . Self-Inflicted Damage 48 | . . 48 Shots 1 | . . 1 Rammed . | . . . Targets Rammed . | . . . Kicked . | . . . Crushed . | . . . Highest Temperature 216 | 144 54 216 Average Temperature 34 | 58 13 83 Received Heat Transfer 159 | 6 90 63 Siege Activations . | . . . Robots Corrupted . | . . . Combat Hostiles . | . . . Parts Fried . | . . . Impact Corruptions . | . . . Robots Melted . | . . . Combat Hostiles . | . . . Parts Melted 1 | 1 . . Heat Transferred 535 | 325 25 185 Parts Sabotaged . | . . . Parts Stolen . | . . . Parts Stripped . | . . . Power Chain Reactions . | . . . Alert | -11 -10 -10 ------- Run | Yrd Mat Sub Peak Influence 138 | 45 138 . Initial 29 | . 29 . Average 51 | 23 55 . Maximum Alert Level . | . . . Low Security (%) 100 | 100 100 . Level 1 . | . . . Level 2 . | . . . Level 3 . | . . . Level 4 . | . . . Level 5 . | . . . High Security . | . . . Max Security . | . . . Squads Dispatched 3 | . 3 . Investigation 2 | . 2 . Extermination . | . . . Reinforcement 1 | . 1 . Assault . | . . . Garrison . | . . . Intercept . | . . . Searches Triggered . | . . . Construction Impeded . | . . . Haulers Reinforced . | . . . Active Scanning Responses . | . . . Cargo Convoy Interrupts . | . . . Stealth | -11 -10 -10 --------- Run | Yrd Mat Sub Distress Signals . | . . . Communications Jammed . | . . . Distress Signals . | . . . Times Spotted 23 | 1 7 15 Peak Tracking Total 8 | . 2 8 Tactical Retreats . | . . . Traps | -11 -10 -10 ------- Run | Yrd Mat Sub Traps Triggered 3 | . 2 1 Indirectly . | . . . Trap Hack Attempts . | . . . Triggered . | . . . Disarmed . | . . . Reprogrammed . | . . . Reused . | . . . Traps Extracted . | . . . Installed . | . . . Triggered . | . . . Machines | -11 -10 -10 ---------- Run | Yrd Mat Sub Machines Disabled 1 | . . 1 Max in Single Turn 1 | . . 1 Machines Repaired . | . . . Machines Dismantled . | . . . Machines Sabotaged . | . . . Overloaded Fab Kills . | . . . Hacking | -11 -10 -10 --------- Run | Yrd Mat Sub Machines Accessed 8 | . 7 1 Terminals 6 | . 6 . Fabricators . | . . . Repair Stations 1 | . 1 . Recycling Units . | . . . Scanalyzers . | . . . Garrison Access . | . . . Total Hacks 32 | . 23 9 Successful 24 | . 15 9 Failed 8 | . 8 . Catastrophic . | . . . Database Lockouts . | . . . Manual 14 | . 14 . Terminals 18 | . 18 . Fabricators . | . . . Repair Stations 5 | . 5 . Recycling Units . | . . . Scanalyzers . | . . . Garrison Access . | . . . Terminal Hacks 12 | . 3 9 Record 10 | . 2 8 Robot Analysis 1 | . 1 . Derelict Proto ID Bank 1 | . . 1 Fabricator Hacks . | . . . Repair Station Hacks 4 | . 4 . Scan Component 2 | . 2 . Repair 2 | . 2 . Recycling Unit Hacks . | . . . Scanalyzer . | . . . Garrison Access Hacks . | . . . Unauthorized Hacks 8 | . 8 . Terminals 7 | . 7 . Botnet 2 | . 2 . Skim 5 | . 5 . Fabricators . | . . . Repair Stations 1 | . 1 . Mechanics 1 | . 1 . Recycling Units . | . . . Scanalyzers . | . . . Garrison Access . | . . . Data Cores Recovered 1 | . 1 . Used . | . . . Hacking Detections 6 | . 6 . Full Trace Events . | . . . Feedback Events . | . . . Feedback Blocked . | . . . Robot Schematics Acquired . | . . . Robots Built . | . . . Authchips . | . . . Time . | . . . Total Robot Build Rating . | . . . Part Schematics Acquired . | . . . Parts Built . | . . . Authchips . | . . . Time . | . . . Total Part Build Rating . | . . . Parts Repaired 2 | . 2 . Time 64 | . 64 . Parts Recycled . | . . . Recycled Matter . | . . . Retrieved Matter . | . . . Retrieved Components . | . . . Parts Scanalyzed . | . . . Part Schematics Acquired . | . . . Parts Damaged . | . . . Bothacking | -11 -10 -10 ------------ Run | Yrd Mat Sub Used RIF Installer . | . . . Robots Hacked . | . . . Non-combat . | . . . Combat . | . . . Robot Hacks Applied . | . . . Relay Couplers Released . | . . . Fabnet Peak Effective % . | . . . Robots Rewired . | . . . Allies Hacked . | . . . Hacks Repelled . | . . . Allies | -11 -10 -10 -------- Run | Yrd Mat Sub Total Allies . | . . . Largest Group . | . . . Highest-Rated Group . | . . . Highest-Rated Ally . | . . . Total Orders . | . . . Ally Attacks . | . . . Total Damage . | . . . Kills . | . . . Allies Corrupted . | . . . Allies Melted . | . . . Intel | -11 -10 -10 ------- Run | Yrd Mat Sub Robot Analysis Total 1 | . 1 . Derelict Logs Recovered 1 | . . 1 Drone Launches . | . . . Drone Recoveries . | . . . Exploration | -11 -10 -10 ------------- Run | Yrd Mat Sub Turns Passed 1726 | 131 851 744 Spaces Moved 1419 | 107 721 591 Core 17 | 15 . 2 Treads . | . . . Legs . | . . . Wheels 1402 | 92 721 589 Hover . | . . . Flight . | . . . Fastest Speed 50 | 50 80 80 Average Speed 95 | 75 90 105 Slowest Speed 150 | 80 110 150 Overloaded Moves . | . . . Propulsion Burnouts . | . . . Robots Hopped . | . . . Cave-ins Triggered . | . . . Exploration Rate (%) 38 | 8 79 29 Regions Visited 2 Branch Regions 1 Pre-discovered Areas 3 | . 3 . Known Exits Taken . | . . . Unknown Exits Taken 2 | 1 1 . Scrap Searched 7 | . . 7 Spaces Dug . | . . . Terrain Destroyed 7 | . . 7 Melee . | . . . Projectile 1 | . . 1 AOE 6 | . . 6 Terrain Rammed . | . . . Walls Destroyed . | . . . Machines Disabled . | . . . Actions | -11 -10 -10 --------- Run | Yrd Mat Sub Total 1691 | 131 870 690 Wait 99 | . 80 19 Move 1417 | 106 720 591 Hop . | . . . Pick Up 33 | 6 16 11 Fast Attach 23 | 7 8 8 Attach 8 | . 1 7 Detach . | . . . Swap 12 | . 3 9 Drop 36 | 1 11 24 Fire 58 | 11 31 16 Melee 5 | . . 5 Ram . | . . . Kick . | . . . Crush . | . . . Escape Stasis . | . . . Rewire . | . . . Trap . | . . . Miscellaneous . | . . . Route ------- -11/Scrapyard -10/Materials (discovered 5 exits: *Mat x3 / [*Min] / *Sub) -10/Subcaves (discovered 1 exit: *Mat) History --------- Turn | Location | Event 2 | -11/Scrapyard | Met Revision 17 52 | -11/Scrapyard | Discovered new exit (range 8) 132 | -11/Scrapyard | Entered Materials 320 | -10/Materials | Build established: Mutant 335 | -10/Materials | Discovered new exit (range 15) 438 | -10/Materials | Discovered new exit (range 15) 505 | -10/Materials | Learned location of Subcaves (-10) 572 | -10/Materials | Learned 4 Subcaves zone layouts 628 | -10/Materials | Learned location of 1 exit from Recycling 676 | -10/Materials | Learned 2 Mines zone layouts 725 | -10/Materials | Repaired Autogun 741 | -10/Materials | Learned 4 Subcaves zone layouts 757 | -10/Materials | Identified exit to Materials 758 | -10/Materials | Repaired Autogun 781 | -10/Materials | Learned location of Mines (-9) 814 | -10/Materials | Learned Storage stockpile data 837 | -10/Materials | Discovered new exit (range 13) 908 | -10/Materials | Learned 2 Mines zone layouts 975 | -10/Materials | Discovered new exit (range 10) 983 | -10/Materials | Entered Subcaves 984 | -10/Subcaves | Identified exit to Materials 1100 | -10/Subcaves | Ambushed by swarm of Subdwellers 1100 | -10/Subcaves | Ambushed by Subdwellers from Twisted Machinery 1100 | -10/Subcaves | Ambushed by Subdwellers from Twisted Machinery 1100 | -10/Subcaves | Ambushed by Subdwellers from Twisted Machinery 1105 | -10/Subcaves | Disturbed a concealed Subdweller 1115 | -10/Subcaves | Core integrity fell below 50% 1152 | -10/Subcaves | Lost 6 parts (1p2n1u2w) 1312 | -10/Subcaves | Visited 4L-MR0's lab 1336 | -10/Subcaves | Found Rainbow Chip 1394 | -10/Subcaves | Build established: Scavenger-Mutant 1398 | -10/Subcaves | Learned Materials terminal intel 1402 | -10/Subcaves | A swath of the cavern ceiling suddenly collapsed 1586 | -10/Subcaves | Attached Rainbow Chip, gained temporary slots: Power, Propulsion, Utility, Weapon 1676 | -10/Subcaves | Ambushed by Subdweller buried in earth 1720 | -10/Subcaves | Core integrity fell below 20% 1721 | -10/Subcaves | Ambushed by Subdweller buried in earth 1721 | -10/Subcaves | Ambushed by Subdweller buried in earth 1727 | -10/Subcaves | Destroyed by AC-5HE(R) with Subdweller Laser Last Messages --------------- the parts list, as a reminder). 01586_ Core temporarily expanded with Power slot. 01586_ Core temporarily expanded with Propulsion slot. 01586_ Core temporarily expanded with Utility slot. 01586_ Core temporarily expanded with Weapon slot. 01586_ Dropped Mak. Light Armor Plating. 01588_ Acquired Mak. Light Armor Plating. 01591_ Dropped Mak. Light Armor Plating. 01591_ Acquired Mak. Light Armor Plating. 01599_ Acquired Neutrino Core. 01617_ Acquired 8 matter. 01618_ Acquired 6 matter. 01634_ Acquired Sub. Shrapnel Launcher. 01677_ GL-35X(R): "ARGHSUB!" 01681_ GL-35X(R) destroyed. 01704_ Acquired 5 matter. 01718_ Acquired 9 matter. 01722_ 71-8LN(R): "ARGHSUB!" 01722_ AC-5HE(R): "ARGHSUB!" [Achievement: First Step to Greatness] Map ----- +----------------------------------------------------+ | # ## #???? #??????????????????????????????????? | | #### #????# #?????????????????????????????????? | | ### #????? "????????????????????????????????? | | ## #?????? "#???????????????????????????????? | | #####?? #"" #??????????????????????????????? | | ## "#"#??? " #??????????????????????????????? | | #### #"##????# ##??????????????????????????????? | | ???## ####???????????????????????????????????????? | | ????###??????????????????????????????????????????? | | ?????????????????????????????????????????????????? | | ?????????????????????????????????????????????????? | | ?????????????????????????????????????????????????? | | ?????????????????????????????????????????????????? | | ?????????????????????????????????????????????????? | | ?????????????????????????????????????????????????? | | ?????????????????????????????????????????????????? | | ?????????????????????????????????????????????????? | | ????????????????????????????????????????? ???????? | | ???????????????????????????????????????## ??????? | | ??????????????????????????????????????? ??????? | | ????????????????????????######????????? ??????? | | ?????????????????????#### ##????????# ??????? | | ????????????????????## #???????## #??????? | | ????????????????????# #???????# ???????? | | ????????????????????# R #???????# ???????? | | ?????????????????????# @ ####???## #???????? | | ?????????????????????# R ###?# #??###### | | ###??????????????????# #??# #### # | | # ##?????????????????# ; #??# #"&%!""" | | #?????????????????### # ##??# [ " | | ###?????????????????# ## #??## | | #?????????????????##?# ;### """ | | ## ###????????????????????## ### # """ | | ####???????????????????????## ## ## | | ###????????????????????????## #### | | ####????????????????????## < R #####??# | | #?????????????????#### #??????# | | #?????????????????# #??????# | | #?????????????????## #### ##?????## | | # #??????????????????########??######????### " | | ## #??????????????????????????????????????#" """ | | ?## #??????????????????????????????????????# """ | | ######??????????????????????????????????????## " | | ##????????????????????????????????????????## # | | #?#####????????????????????????????????### " # | | ### ##??????????????????????????????## | | #??????????????????????????????# | | #??????????????????????????????##### | | ## #### #??????????????????????????????????## # | | ?## ########??????????????????????????????????#### | +----------------------------------------------------+ Best States ------------- Heat Dissipation 25 Energy Generation 24 Energy Capacity 465 Matter Stores 300 Matter Capacity 300 Sight Range 16 Terrain Scan Range 16 Terrain Scan Density 10 Armor Coverage 800 Evasion (%) 50 Item Schematics ----------------- None Robot Schematics ------------------ None Fabricated ------------ Nothing Alien Tech Used ----------------- None Achievements -------------- Crack Shot First Step to Greatness Let's See Who's Tougher Librarian Loot Pinata Part-time Mechanic Storm Trooper True Hacker Uninvited Guest Challenges ------------ None Game ------ Seed SiegeSurgeShield Manual? 0 Play Time 00:39:12 Cumulative 0.6 hours Start 2024.09.06 @ 17:37:03 End 2024.09.06 @ 18:28:05 Sessions 8 Manual Loads 0 Difficulty Rogue Special Mode None Game No. 1 Rogue 1 Adventurer 0 Explorer 0 Win Type - Total 0 Types 0/0/0/0/0/0/0/0/0 Lore% 1 Gallery% 1 Achievement% 3 Wizard Run 0 Options --------- Layout 0 ASCII 0 Keyboard 0 Movement Vi Keybinds 0 Fullscreen 2 Font 24/Smallcaps Map View 113x50 Zoom Use 0% Tactical HUD 1 Map Filters NONE Filters NONE Steam 0 RUN: 394ca14d-22a5-4669-bbb1-659feae3a159